bitfinex/quotes_SOLUSD_20240702
["timestamp","ask_amount","ask_price","bid_price","bid_amount"]
[1719927298923,6.3922,150.01,149.84,119.94954503]
[1719927299117,13.0588,150.01,149.86,119.91]
[1719927299296,6.3922,150.01,149.88,119.91]
[1719927299497,16.6614,150.05,149.89,84.91]
[1719927299696,6.6658,150.02,149.89,65.0]
[1719927300013,6.5696,150.07,149.89,65.0]
[1719927300014,16.6608,150.06,149.89,65.0]
[1719927300367,6.6654,150.03,149.89,165.0]
[1719927300667,6.664,150.06,149.92,100.0]
[1719927300793,6.664,150.06,149.93,65.0]
[1719927300994,6.5696,150.07,149.93,65.0]
[1719927301203,6.6645,150.05,149.93,65.0]
[1719927301418,6.664,150.06,149.93,65.0]
[1719927301949,6.6644,150.05,149.93,65.0]
[1719927302350,6.5696,150.07,149.93,65.0]
[1719927302492,6.6649,150.04,149.93,65.0]
[1719927302934,6.6644,150.05,149.93,65.0]
[1719927303100,6.6702,149.92,149.8,105.41272681]
[1719927303303,6.6723,149.88,149.76,0.9565333]
[1719927303610,6.1859,149.94,149.76,0.9565333]
[1719927303611,16.6764,149.92,149.76,0.9565333]
[1719927303792,6.672,149.88,149.76,0.9565333]
[1719927304343,20.0,149.93,149.76,0.9565333]
[1719927304643,16.6773,149.91,149.76,0.9565333]
[1719927304651,20.0,149.93,149.78,100.0]
[1719927304829,6.6723,149.88,149.76,0.9565333]
[1719927305158,6.6707,149.91,149.77,219.91]
[1719927305325,36.3558,149.99,149.8,119.91]
[1719927305510,20.0,149.98,149.8,119.91]
[1719927305751,6.6683,149.97,149.82,119.91]
[1719927305909,6.668,149.97,149.82,219.91]
[1719927306216,6.6676,149.98,149.85,19.91]
[1719927306408,6.6654,150.03,149.86,84.91]
[1719927306611,6.6659,150.02,149.87,219.91]
[1719927306828,6.0159,150.06,149.88,39.91]
[1719927306998,6.6661,150.02,149.88,39.91]
[1719927307317,6.0159,150.06,149.91,100.0]
[1719927307658,6.0159,150.06,149.92,20.0]
[1719927307821,6.0159,150.06,149.93,45.0]
[1719927308026,6.0159,150.06,149.94,20.0]
[1719927308499,22.6767,150.06,149.84,32.97954503]
[1719927308709,22.6767,150.06,149.85,20.0]
[1719927309016,6.6672,149.99,149.85,20.0]
[1719927309222,22.6767,150.06,149.85,20.0]
[1719927309223,16.6635,150.03,149.85,20.0]
[1719927309531,6.6658,150.02,149.85,20.0]
[1719927309740,6.6658,150.02,149.86,100.0]
[1719927309902,45.0,150.05,149.87,20.0]
[1719927310097,20.0,150.04,149.87,20.0]
[1719927310423,6.6658,150.02,149.87,20.0]
[1719927310606,26.6652,150.04,149.89,100.0]
[1719927310807,12.6801,150.06,149.91,100.0]
[1719927311002,20.0,150.05,149.88,45.0]
[1719927311199,6.6661,150.02,149.89,20.0]
[1719927311422,6.6661,150.02,149.9,45.0]
[1719927311624,22.6767,150.06,149.91,20.0]
[1719927311804,6.91646612,150.02,149.91,20.0]
[1719927312008,22.6767,150.06,149.91,20.0]
[1719927312225,6.6654,150.03,149.92,45.0]
[1719927312469,6.91759226,150.04,149.93,20.0]
[1719927312711,6.0159,150.06,149.93,20.0]
[1719927312905,6.9188585,150.04,149.93,20.0]
[1719927313120,6.6635,150.08,149.93,20.0]
[1719927313449,6.6645,150.05,149.93,20.0]
[1719927313761,6.91730753,150.06,149.94,45.0]
[1719927313910,6.91730753,150.06,149.95,20.0]
[1719927314113,6.6635,150.07,149.95,20.0]
[1719927314333,6.91695312,150.07,149.95,20.0]
[1719927314542,6.91695312,150.07,149.96,119.91]
[1719927314726,6.5869,150.12,149.97,20.0]
[1719927314917,6.91399196,150.12,149.95,120.0]
[1719927315203,6.91399196,150.12,149.97,219.91]
[1719927315416,6.91399196,150.12,150.0,100.0]
[1719927315714,100.0,150.27,150.0,100.0]
[1719927315715,23.0044,150.21,150.02,115.024]
[1719927315923,6.92347083,150.17,150.03,20.0]
[1719927316132,6.4047,150.22,150.03,20.0]
[1719927316347,6.6604,150.14,150.03,20.0]
[1719927316508,6.6609,150.13,150.03,20.0]
[1719927316816,6.9129683,150.13,150.04,45.0]
[1719927317215,6.6599,150.16,150.04,45.0]
[1719927317468,6.92193089,150.15,150.04,45.0]
[1719927317825,6.4047,150.22,150.05,20.0]
[1719927318127,6.91503513,150.18,150.05,20.0]
[1719927318330,6.6573,150.21,150.05,120.0]
[1719927318519,6.91487284,150.18,150.06,45.0]
[1719927318712,6.91487284,150.18,150.07,20.0]
[1719927318907,16.6394,150.25,150.08,45.0]
[1719927319113,6.91484543,150.18,150.08,45.0]
[1719927319335,33.2788,150.25,150.08,45.0]
[1719927319664,6.91360479,150.22,150.08,45.0]
[1719927319852,33.2788,150.25,150.08,45.0]
[1719927320214,6.6578,150.2,150.08,45.0]
[1719927320386,6.92122505,150.21,150.08,45.0]
[1719927320525,16.6425,150.22,150.08,45.0]
[1719927320722,6.91517473,150.19,150.07,20.0]
[1719927321046,6.6596,150.16,150.03,20.0]
[1719927321217,6.91432501,150.18,150.03,20.0]
[1719927321917,23.56142501,150.18,150.03,20.0]
[1719927322048,6.661,150.13,150.03,20.0]
[1719927322221,6.6605,150.14,150.03,20.0]
[1719927322573,6.6601,150.15,150.03,20.0]
[1719927322767,6.91432501,150.18,150.03,20.0]
[1719927322923,6.6591,150.17,150.03,20.0]
[1719927323244,6.91432501,150.18,150.03,20.0]
[1719927323245,6.91432501,150.18,150.03,39.91]
[1719927323549,6.91432501,150.18,150.03,120.0]
[1719927323870,6.91432501,150.18,150.04,45.0]
[1719927324222,6.6578,150.2,150.05,20.0]
[1719927324337,20.0,150.19,150.06,45.0]
[1719927324423,6.90948785,150.2,150.07,120.0]
[1719927324771,6.90948785,150.2,150.07,20.0]
[1719927324935,16.6397,150.25,150.07,139.91]
[1719927325128,20.0,150.24,150.07,20.0]
[1719927325329,6.91591498,150.22,150.07,20.0]
[1719927325518,6.6579,150.2,150.07,20.0]
[1719927325941,6.6575,150.21,150.07,20.0]
[1719927326144,6.91760209,150.22,150.07,20.0]
[1719927326471,6.6589,150.18,150.07,20.0]
[1719927326682,6.91760209,150.22,150.03,20.0]
[1719927326851,6.6596,150.16,150.03,120.0]
[1719927327048,6.91760209,150.22,150.03,20.0]
[1719927327049,6.6605,150.14,150.03,20.0]
[1719927327254,6.659,150.18,150.03,20.0]
[1719927327450,6.6598,150.16,150.03,20.0]
[1719927327680,6.6587,150.18,150.04,119.91]
[1719927327855,6.6585,150.19,150.05,20.0]
[1719927328177,6.6581,150.2,150.05,120.0]
[1719927328367,6.6582,150.19,150.05,120.0]
[1719927328572,6.91760209,150.22,150.05,20.0]
[1719927328758,6.6606,150.14,150.03,20.0]
[1719927328944,6.6613,150.12,150.03,20.0]
[1719927329165,45.0,150.18,150.03,20.0]
[1719927329381,6.6626,150.09,150.02,15.024]
[1719927329551,53.2976,150.17,150.02,15.024]
[1719927329754,6.6627,150.09,150.02,15.024]
[1719927330063,53.2976,150.17,150.02,15.024]
[1719927330268,16.6541,150.12,150.02,15.024]
[1719927330465,6.6635,150.08,150.02,15.024]
[1719927330655,16.6507,150.15,150.02,15.024]
[1719927330876,20.0,150.14,150.02,15.024]
[1719927331171,6.6619,150.11,150.02,15.024]
[1719927331398,6.6617,150.11,150.02,15.024]
[1719927331781,6.6623,150.1,150.02,15.024]
[1719927331990,6.6617,150.12,150.02,15.024]
[1719927332146,6.6618,150.11,150.03,45.0]
[1719927332659,6.6614,150.12,150.03,45.0]
[1719927332868,6.0431,150.17,150.03,45.0]
[1719927333067,20.0,150.16,150.03,45.0]
[1719927333274,6.6595,150.17,150.03,45.0]
[1719927333572,23.31,150.21,150.03,45.0]
[1719927333573,6.6596,150.16,150.04,20.0]
[1719927333901,23.31,150.21,150.05,45.0]
[1719927333902,6.6607,150.14,150.05,45.0]
[1719927334088,6.0234,150.1,149.96,100.0]
[1719927334296,6.6644,150.06,149.89,100.0]
[1719927334459,6.0234,150.1,149.89,100.0]
[1719927334460,6.0234,150.1,149.94,16.5046]
[1719927334792,6.6642,150.06,149.94,16.5046]
[1719927334992,32.94,150.15,149.94,16.5046]
[1719927335161,6.6625,150.1,149.94,36.4146]
[1719927335385,6.663,150.09,149.95,119.91]
[1719927335604,6.6621,150.11,149.97,119.91]
[1719927335772,6.4114,150.16,149.98,120.0]
[1719927336095,23.5807561,150.11,149.99,20.0]
[1719927336275,23.5807561,150.11,149.95,20.0]
[1719927336276,16.6549,150.11,149.95,20.0]
[1719927336471,6.6625,150.1,149.95,20.0]
[1719927336671,6.6617,150.12,149.95,20.0]
[1719927336988,6.6617,150.12,149.96,100.0]
[1719927337187,6.662,150.11,150.0,45.0]
[1719927337492,6.6618,150.11,150.01,20.0]
[1719927337812,13.58432871,150.14,150.02,6.4526]
[1719927337973,6.6608,150.14,150.03,36.2405]
[1719927338301,6.6605,150.14,150.03,36.2405]
[1719927338465,23.56351535,150.18,150.03,36.2405]
[1719927338672,23.56351535,150.18,150.04,45.0]
[1719927339125,6.6613,150.12,150.04,45.0]
[1719927339300,23.56351535,150.18,150.04,45.0]
[1719927339486,6.6609,150.13,150.04,45.0]
[1719927339668,6.6614,150.12,150.03,36.2405]
[1719927339993,6.6622,150.1,150.03,36.2405]
[1719927340384,6.6618,150.11,150.03,36.2405]
[1719927340808,6.91621535,150.18,150.03,36.2405]
[1719927340980,6.6607,150.14,150.03,36.2405]
[1719927341184,6.6607,150.14,150.04,45.0]
[1719927341808,6.91621535,150.18,150.04,45.0]
[1719927342054,6.6596,150.16,150.04,45.0]
[1719927342404,6.91621535,150.18,150.04,45.0]
[1719927342653,6.91621535,150.18,150.05,20.0]
[1719927342809,6.66,150.15,150.05,20.0]
[1719927344296,23.56341535,150.18,150.03,16.2405]
[1719927344481,16.6503,150.15,150.03,16.2405]
[1719927344684,6.6625,150.1,150.03,16.2405]
[1719927344982,6.662,150.11,150.03,16.2405]
[1719927345187,6.6622,150.1,150.03,16.2405]
[1719927345614,6.6627,150.09,150.03,16.2405]
[1719927345790,6.6623,150.1,150.03,16.2405]
[1719927346416,6.6618,150.11,150.03,16.2405]
[1719927346900,81.6483,150.17,150.03,16.2405]
[1719927347103,6.6605,150.14,150.03,16.2405]
[1719927347406,6.6614,150.12,150.03,16.2405]
[1719927347614,16.6503,150.15,150.03,16.2405]
[1719927347830,20.0,150.14,150.03,16.2405]
[1719927347986,6.6612,150.13,150.03,16.2405]
[1719927348186,6.6617,150.12,150.03,16.2405]
[1719927348393,6.6618,150.11,150.03,16.2405]
[1719927348983,6.91805252,150.13,150.03,16.2405]
[1719927349195,6.6619,150.11,150.03,16.2405]
[1719927349822,6.6623,150.1,150.03,16.2405]
[1719927350527,6.6627,150.09,150.03,16.2405]
[1719927350819,6.6623,150.1,150.03,16.2405]
[1719927351006,6.6619,150.11,150.03,16.2405]
[1719927351716,6.91805252,150.13,150.03,16.2405]
[1719927352015,6.6618,150.11,150.03,16.2405]
[1719927352214,6.6614,150.12,150.03,16.2405]
[1719927353403,9.2614,150.11,149.93,21.8614]
[1719927353602,32.94,150.08,149.93,21.8614]
[1719927353901,6.6677,149.98,149.93,21.8614]
[1719927354400,6.6683,149.97,149.93,21.8614]
[1719927354587,6.6686,149.96,149.93,21.8614]
[1719927354817,6.6692,149.95,149.91,0.1331225]
[1719927355584,26.96,150.02,149.91,0.1331225]
[1719927355916,6.6694,149.94,149.91,0.1331225]
[1719927356132,6.6689,149.95,149.91,0.1331225]
[1719927356436,6.6687,149.96,149.91,0.1331225]
[1719927356648,6.6689,149.95,149.91,0.1331225]
[1719927356816,33.337,149.99,149.91,0.1331225]
[1719927357110,20.0,149.98,149.91,0.1331225]
[1719927357316,6.6698,149.93,149.91,0.1331225]
[1719927357521,6.6702,149.92,149.91,0.1331225]
[1719927358861,6.6733,149.86,149.84,0.03954503]
[1719927359137,6.92460181,149.92,149.84,0.03954503]
[1719927359138,6.6733,149.85,149.84,0.03954503]
[1719927359961,26.6733,149.85,149.84,0.03954503]
[1719927360327,71.6733,149.85,149.84,0.03954503]
[1719927360612,26.6733,149.85,149.84,0.03954503]
[1719927361037,71.6733,149.85,149.84,0.03954503]
[1719927361223,26.6733,149.85,149.84,4.503e-05]
[1719927361746,71.6733,149.85,149.84,4.503e-05]
[1719927362349,6.6753,149.81,149.76,0.8554862]
[1719927362546,20.0,149.8,149.76,0.8554862]
[1719927362916,45.0,149.85,149.76,0.8554862]
[1719927363246,6.6739,149.84,149.76,7.1912862]
[1719927363546,6.6737,149.85,149.76,7.1912862]
[1719927363724,16.6806,149.88,149.76,7.1912862]
[1719927363912,6.6743,149.83,149.76,7.1912862]
[1719927364150,6.675,149.82,149.76,7.1912862]
[1719927364354,16.6831,149.86,149.76,0.8554862]
[1719927364589,16.6851,149.84,149.76,0.8554862]
[1719927364772,6.6764,149.79,149.76,0.8554862]
[1719927364953,6.6769,149.77,149.76,0.8554862]
[1719927365465,32.97,149.85,149.76,0.8554862]
[1719927365466,6.6765,149.78,149.76,0.8554862]
[1719927365649,6.6769,149.77,149.76,0.8554862]
[1719927366251,6.6765,149.78,149.76,0.8554862]
[1719927366439,6.6769,149.77,149.76,0.8554862]
[1719927366644,51.6769,149.77,149.76,0.8554862]
[1719927366966,71.6769,149.77,149.76,0.8554862]
[1719927367659,104.6469,149.77,149.76,8.62e-05]
[1719927367872,6.6817,149.67,149.61,0.8554862]
[1719927368055,6.6081,149.74,149.61,0.8554862]
[1719927368056,6.6812,149.68,149.61,0.8554862]
[1719927368251,6.683,149.64,149.61,0.8554862]
[1719927368501,6.6835,149.62,149.61,0.8554862]
[1719927368676,16.7034,149.67,149.61,0.8554862]
[1719927368982,6.6831,149.63,149.61,0.8554862]
[1719927369299,20.0,149.66,149.54,6.3475]
[1719927369300,6.6837,149.62,149.54,4.2029862]
[1719927369561,6.6836,149.62,149.54,4.2029862]
[1719927369963,16.706,149.65,149.54,4.2029862]
[1719927370147,65.0,149.64,149.54,4.2029862]
[1719927370349,6.6839,149.62,149.54,4.2029862]
[1719927370970,6.6832,149.63,149.54,4.2029862]
[1719927371361,20.0,149.64,149.54,4.2029862]
[1719927371563,6.91915907,149.66,149.54,4.2029862]
[1719927371763,65.0,149.65,149.54,4.2029862]
[1719927372272,6.91915907,149.66,149.54,4.2029862]
[1719927372471,6.91915907,149.66,149.54,24.2029862]
[1719927372676,16.6958,149.74,149.54,224.2029862]
[1719927372879,6.9152259,149.72,149.56,100.0]
[1719927373177,6.6797,149.71,149.57,20.0]
[1719927373754,13.5943259,149.72,149.56,20.0]
[1719927373990,6.9152259,149.72,149.58,51.5555]
[1719927374277,6.9152259,149.72,149.6,15.4057]
[1719927374606,6.6782,149.74,149.6,15.4057]
[1719927374769,6.6782,149.74,149.61,65.0]
[1719927375198,6.9094324,149.75,149.61,65.0]
[1719927375199,13.5872324,149.75,149.61,65.0]
[1719927375489,13.5876324,149.75,149.61,65.0]
[1719927375689,6.9094324,149.75,149.61,165.0]
[1719927375889,6.6765,149.78,149.61,165.0]
[1719927376067,13.58436538,149.77,149.61,165.0]
[1719927376266,6.6774,149.76,149.61,65.0]
[1719927376598,13.58446538,149.77,149.62,100.0]
[1719927376896,6.90746538,149.77,149.63,6.4707]
[1719927377091,6.90746538,149.77,149.65,100.0]
[1719927377268,6.6742,149.83,149.66,20.0]
[1719927377463,6.90690276,149.86,149.69,115.4042]
[1719927377773,6.90690276,149.86,149.7,20.0]
[1719927377774,13.57990276,149.86,149.7,20.0]
[1719927377966,6.6735,149.85,149.7,20.0]
[1719927378204,6.90690276,149.86,149.7,20.0]
[1719927379020,6.90690276,149.86,149.72,100.0]
[1719927379302,6.6725,149.87,149.75,16.3379]
[1719927379492,32.97,149.94,149.75,16.3379]
[1719927379493,16.6756,149.92,149.75,16.3379]
[1719927379818,6.9024824,149.89,149.75,16.3379]
[1719927380092,6.672,149.88,149.75,16.3379]
[1719927380381,6.6724,149.87,149.76,45.0]
[1719927380587,6.6721,149.88,149.76,45.0]
[1719927380775,23.58141029,149.91,149.76,45.0]
[1719927381377,6.6746,149.83,149.75,16.3379]
[1719927381597,16.6801,149.88,149.75,16.3379]
[1719927381883,6.6738,149.84,149.75,16.3379]
[1719927382067,6.6746,149.83,149.75,16.3379]
[1719927382367,16.6801,149.88,149.75,16.3379]
[1719927382750,32.97,149.89,149.75,16.3379]
[1719927382751,6.673,149.86,149.75,16.3379]
[1719927382893,6.6724,149.87,149.75,16.3379]
[1719927383400,6.6729,149.86,149.75,16.3379]
[1719927383577,23.58091029,149.91,149.75,16.3379]
[1719927383768,20.0,149.9,149.76,1.3351025]
[1719927384086,6.6741,149.84,149.75,16.3379]
[1719927384276,6.6742,149.83,149.75,16.3379]
[1719927384599,16.6806,149.88,149.75,16.3379]
[1719927384784,6.6742,149.83,149.75,16.3379]
[1719927385279,6.6752,149.81,149.75,16.3379]
[1719927385497,16.6873,149.82,149.67,16.3404]
[1719927385684,6.6773,149.76,149.67,16.3404]
[1719927385879,16.6873,149.82,149.67,16.3404]
[1719927386133,6.676,149.8,149.67,16.3404]
[1719927386304,6.5879,149.85,149.67,116.3404]
[1719927386591,6.6746,149.82,149.67,16.3404]
[1719927386774,6.6743,149.83,149.68,20.0]
[1719927386991,32.97,149.87,149.69,45.0]
[1719927387176,20.0,149.86,149.7,20.0]
[1719927387394,6.676,149.79,149.67,16.3404]
[1719927387688,16.6863,149.83,149.67,16.3404]
[1719927387877,20.0,149.82,149.67,16.3404]
[1719927388076,6.6752,149.81,149.67,16.3404]
[1719927388290,6.6747,149.82,149.67,116.3404]
[1719927389071,6.6747,149.82,149.68,20.0]
[1719927389283,16.6837,149.85,149.68,20.0]
[1719927389486,6.6761,149.79,149.68,20.0]
[1719927389707,20.0,149.84,149.68,20.0]
[1719927389708,6.6756,149.8,149.68,20.0]
[1719927390196,6.6754,149.81,149.68,20.0]
[1719927390588,6.6756,149.8,149.68,20.0]
[1719927390781,6.676,149.79,149.68,20.0]
[1719927391098,6.6765,149.78,149.68,20.0]
[1719927391297,6.6757,149.8,149.68,20.0]
[1719927391590,6.6762,149.79,149.67,16.3404]
[1719927391785,6.6773,149.76,149.67,16.3404]
[1719927392185,16.6879,149.81,149.67,16.3404]
[1719927392390,6.677,149.77,149.67,16.3404]
[1719927392689,6.6774,149.76,149.67,16.3404]
[1719927393170,6.6779,149.75,149.67,16.3404]
[1719927393373,6.6774,149.76,149.67,16.3404]
[1719927393617,16.6908,149.79,149.67,16.3404]
[1719927393618,6.6764,149.78,149.67,16.3404]
[1719927393786,32.97,149.81,149.67,16.3404]
[1719927393984,20.0,149.8,149.67,16.3404]
[1719927394186,6.95596627,149.82,149.67,116.3404]
[1719927394391,6.6752,149.81,149.67,116.3404]
[1719927394592,6.95596627,149.82,149.69,100.0]
[1719927394795,32.97,149.87,149.7,45.0]
[1719927395103,13.61767943,149.83,149.69,100.0]
[1719927395320,32.97,149.87,149.7,20.0]
[1719927395599,32.97,149.87,149.68,65.0]
[1719927395600,6.6756,149.8,149.68,65.0]
[1719927395970,6.6761,149.79,149.68,65.0]
[1719927396174,6.94203617,149.86,149.67,16.3404]
[1719927396391,6.6772,149.77,149.67,16.3404]
[1719927396589,32.97,149.83,149.67,16.3404]
[1719927396590,66.3417,149.83,149.67,16.3404]
[1719927396888,6.6788,149.73,149.67,16.3404]
[1719927397182,6.6791,149.72,149.67,16.3404]
[1719927397447,6.6785,149.74,149.67,16.3404]
[1719927397594,6.6787,149.73,149.67,16.3404]
[1719927397834,6.6783,149.74,149.67,16.3404]
[1719927398209,16.6911,149.78,149.67,16.3404]
[1719927398505,23.0337,149.81,149.67,16.3404]
[1719927398673,16.6903,149.79,149.67,16.3404]
[1719927398882,6.6778,149.75,149.67,16.3404]
[1719927399281,6.6783,149.74,149.67,16.3404]
[1719927399485,16.6932,149.77,149.67,16.3404]
[1719927399797,6.6796,149.71,149.67,16.3404]
[1719927399999,16.6951,149.75,149.67,16.3404]
[1719927400199,6.6804,149.7,149.67,16.3404]
[1719927400403,6.6796,149.71,149.67,16.3404]
[1719927400595,6.68,149.7,149.62,16.2361]
[1719927401221,6.681,149.68,149.62,16.2361]
[1719927402433,6.6804,149.7,149.62,16.2361]
[1719927402627,6.6806,149.69,149.62,16.2361]
[1719927402816,6.6805,149.69,149.62,16.2361]
[1719927403124,6.681,149.68,149.62,16.2361]
[1719927403315,6.6814,149.67,149.62,16.2361]
[1719927404012,6.6819,149.66,149.62,16.2361]
[1719927404225,16.6994,149.71,149.62,16.2361]
[1719927404226,6.681,149.68,149.62,16.2361]
[1719927404534,16.6964,149.74,149.62,16.2361]
[1719927404833,6.6801,149.7,149.62,16.2361]
[1719927405126,6.6804,149.69,149.62,16.2361]
[1719927405338,6.6801,149.7,149.62,16.2361]
[1719927405827,6.9235502,149.71,149.62,16.2361]
[1719927406138,6.6804,149.7,149.62,16.2361]
[1719927406339,6.9235502,149.71,149.62,16.2361]
[1719927406647,6.6812,149.68,149.62,16.2361]
[1719927407018,6.9235502,149.71,149.62,16.2361]
[1719927407643,6.6803,149.7,149.62,16.2361]
[1719927408015,6.9235502,149.71,149.62,16.2361]
[1719927408016,6.6804,149.69,149.62,16.2361]
[1719927408227,6.9235502,149.71,149.62,16.2361]
[1719927408811,6.6808,149.69,149.62,16.2361]
[1719927409008,6.9235502,149.71,149.62,16.2361]
[1719927409528,16.6991,149.71,149.62,16.2361]
[1719927409845,6.89968622,149.71,149.62,16.2361]
[1719927410219,16.6951,149.75,149.62,16.2361]
[1719927410528,6.6796,149.71,149.62,16.2361]
[1719927410942,6.6792,149.72,149.62,16.2361]
[1719927411135,26.89560614,149.74,149.62,16.2361]
[1719927411341,6.6796,149.71,149.62,16.2361]
[1719927411526,6.89560614,149.74,149.62,16.2361]
[1719927412219,6.6792,149.72,149.62,16.2361]
[1719927412426,6.6795,149.71,149.62,16.2361]
[1719927412891,6.6789,149.73,149.62,16.2361]
[1719927413028,6.89560614,149.74,149.62,16.2361]
[1719927413425,13.57420614,149.74,149.62,16.2361]
[1719927413662,6.89560614,149.74,149.62,16.2361]
[1719927413845,6.89560614,149.74,149.64,122.4381]
[1719927414048,6.6764,149.78,149.65,20.0]
[1719927414234,6.6759,149.8,149.65,20.0]
[1719927414444,6.89120573,149.8,149.67,22.325]
[1719927414748,13.56690573,149.8,149.67,22.325]
[1719927414930,13.56690573,149.8,149.68,20.0]
[1719927415129,6.89120573,149.8,149.69,16.6493]
[1719927415452,6.6752,149.81,149.69,16.6493]
[1719927415625,6.6756,149.8,149.69,16.6493]
[1719927415842,6.6752,149.81,149.71,6.2726]
[1719927416155,16.6829,149.86,149.72,15.1457]
[1719927416331,23.56778596,149.86,149.72,60.1457]
[1719927416640,16.6853,149.84,149.72,15.1457]
[1719927416825,6.6756,149.8,149.72,15.1457]
[1719927417357,16.6853,149.84,149.72,15.1457]
[1719927417653,6.88488596,149.86,149.72,15.1457]
[1719927417945,6.675,149.82,149.72,15.1457]
[1719927418261,6.6742,149.83,149.72,15.1457]
[1719927418442,6.6739,149.84,149.72,15.1457]
[1719927418649,6.88488596,149.86,149.72,15.1457]
[1719927418827,6.6752,149.81,149.72,15.1457]
[1719927419150,6.676,149.79,149.72,15.1457]
[1719927419354,33.95488596,149.86,149.72,15.1457]
[1719927419573,6.6765,149.78,149.72,15.1457]
[1719927419858,16.6877,149.82,149.72,15.1457]
[1719927420068,6.6772,149.77,149.72,15.1457]
[1719927420400,6.6782,149.74,149.72,15.1457]
[1719927421328,6.677,149.77,149.72,15.1457]
[1719927421548,27.07,149.82,149.72,15.1457]
[1719927421756,20.0,149.81,149.72,15.1457]
[1719927421967,6.6767,149.78,149.72,15.1457]
[1719927422522,6.6769,149.77,149.72,15.1457]
[1719927422746,6.6759,149.8,149.72,15.1457]
[1719927422949,20.0,149.81,149.72,15.1457]
[1719927423141,6.6769,149.77,149.72,15.1457]
[1719927423725,6.6774,149.76,149.72,15.1457]
[1719927423944,6.6769,149.77,149.72,15.1457]
[1719927424183,36.6887,149.81,149.72,15.1457]
[1719927424184,6.6765,149.78,149.72,15.1457]
[1719927424352,6.6758,149.8,149.72,15.1457]
[1719927424687,6.6765,149.78,149.72,15.1457]
[1719927424856,16.6851,149.84,149.72,15.1457]
[1719927425179,26.6745,149.83,149.72,15.1457]
[1719927425353,6.6745,149.83,149.72,15.1457]
[1719927425553,6.6747,149.82,149.72,15.1457]
[1719927425875,6.6751,149.81,149.72,15.1457]
[1719927426079,6.6751,149.81,149.64,119.91]
[1719927426373,16.6838,149.85,149.63,100.0]
[1719927426374,6.676,149.79,149.65,20.0]
[1719927426574,6.85931897,149.82,149.65,20.0]
[1719927426877,6.6761,149.79,149.65,20.0]
[1719927427070,6.6752,149.81,149.65,200.0]
[1719927427273,6.6752,149.81,149.66,20.0]
[1719927427668,6.676,149.79,149.66,20.0]
[1719927427892,23.55267804,149.84,149.63,100.0]
[1719927427893,6.6756,149.8,149.64,20.0]
[1719927428079,6.676,149.79,149.64,20.0]
[1719927428256,6.6756,149.8,149.64,20.0]
[1719927428457,6.6759,149.8,149.64,20.0]
[1719927428680,6.86787804,149.84,149.68,100.0]
[1719927428981,6.6742,149.84,149.7,22.5714]
[1719927429284,6.6739,149.84,149.71,42.5714]
[1719927429489,6.6753,149.81,149.72,20.0]
[1719927429669,6.87922954,149.87,149.72,20.0]
[1719927429978,6.6739,149.84,149.72,20.0]
[1719927430580,6.6736,149.85,149.72,20.0]
[1719927430786,6.6736,149.85,149.73,45.0]
[1719927431000,6.87922954,149.87,149.74,20.0]
[1719927431188,6.87922954,149.87,149.76,6.5921]
[1719927431897,6.87923,149.93,149.76,6.5921]